Cogmind - Beta 15 @@@ ROGUE MODE // 2025.08.19 @ 07:00:36 Player: shapeshifter Result: Destroyed by P-80 Master with Gamma Rifle Performance ------------- Evolutions (8) 4000 Regions Visited (16) 3200 Robots Destroyed (150) 750 Value Destroyed (6067) 6067 Prototype IDs (51) 1020 Alien Tech Used (9) 1800 Bonus (9330) 9330 TOTAL SCORE: 26167 Bonus ------- High Alert Combat Kills 124 Follower Combat Kills 1612 Registered with UFD 300 Met Optimus in HQ 500 Met Zhirov 300 Met Warlord at Base 500 MAIN.C Attacked Warlord 500 Warlord Defense Kills 828 Used Core Reset Matrix 3000 Met Sigix 2000 Friendly Fire -334 Cogmind --------- Core Integrity 0/1450 Matter 218/300 Energy 99/100 System Corruption 32% Temperature Cool (0) Movement Core (50) Location -2/Research Parts ------- > --- POWER (2) -------- (None) > --- PROPULSION (6) --- (None) > --- UTILITY (11) ----- Experimental Targeting Computer > --- WEAPON (4) ------- (None) > --- INVENTORY (5) ---- Subatomic Replicator Terrabomb Sigix Containment Pod Sigix Corpse Peak State ------------ > --- POWER ------------ Light Antimatter Reactor Matter Drive > --- PROPULSION ------- Myomer Leg Myomer Leg Advanced Myomer Leg Advanced Myomer Leg Advanced Myomer Leg Biometal Leg > --- UTILITY ---------- Huge Storage Unit Advanced Energy Well Long-range Sensor Array Advanced Signal Interpreter 0b10 Decoder Chip [Looter] Experimental Targeting Computer Graphene Brace Force Field Advanced Hacking Suite Advanced Hacking Suite Amulet of Y3-NDR > --- WEAPON ----------- Matter Neutralizer Force Lance > --- INVENTORY -------- Light Antimatter Reactor Light Antimatter Reactor Light Antimatter Reactor Centrium Wheel Improved Matter Compressor Advanced Signal Interpreter 0b10 Decoder Chip [Looter] Experimental Core Shielding Advanced Remote Force Field Phase Redirector Advanced Component Analysis Suite Subatomic Replicator Terrabomb Terrabomb Core Cannon Micro-nuke Launcher Sigix Terminator Improved Remote Datajack Improved Plasma Cutter Core Stripper Sigix Corpse Sigix Corpse [Rating: 170] Favorites ----------- Power Improved Ion Engine Engine Improved Ion Engine Power Core Light Nuclear Core Reactor Light Antimatter Reactor Propulsion Advanced Myomer Leg Treads Light Treads Leg Advanced Myomer Leg Wheel Subdweller Monowheel Hover Unit Improved Linear Gravjet Flight Unit Flightbrick Utility Improved Hacking Suite Device Graphene Brace Storage Large Storage Unit Processor Experimental Targeting Computer Hackware Improved Hacking Suite Protection Makeshift Light Armor Plating Artifact Phase Redirector Weapon Spread Laser Energy Gun Spread Laser Energy Cannon Advanced Plasma Cannon Ballistic Gun KE Penetrator Ballistic Cannon Battle Cannon Launcher Micro-nuke Launcher Special Weapon Remote Datajack Impact Weapon Powered Hammer Slashing Weapon Makeshift Sword Piercing Weapon Force Lance Build | -11 -10 -10 -7 -7 -5 -5 -5 -4 -4 -4 -4 -4 -3 -3 -3 -2 ------- Run | Yrd Mat Sub Rec Scr Fac Upp War Pro Fac Upp Upp Zhi Pro Res Qua Res Slots Evolved 16 | . . . . . 10 . . . 2 . . . . 2 . 2 Power 1 | . . . . . 1 . . . . . . . . . . . Propulsion 4 | . . . . . 4 . . . . . . . . . . . Utility 9 | . . . . . 5 . . . 2 . . . . 2 . . Weapon 2 | . . . . . . . . . . . . . . . . 2 Parts Attached 177 | 7 7 17 1 10 13 5 9 3 23 5 6 6 10 22 11 22 Power 19 | 1 1 1 . . . 2 . . 2 . 3 1 1 4 2 1 Engine 4 | 1 1 1 . . . 1 . . . . . . . . . . Core 4 | . . . . . . 1 . . . . 3 . . . . . Reactor 11 | . . . . . . . . . 2 . . 1 1 4 2 1 Propulsion 50 | 2 2 6 . 3 4 1 3 . 8 3 . 3 4 4 . 7 Treads 5 | 2 2 1 . . . . . . . . . . . . . . Leg 26 | . . . . 2 . 1 . . 8 1 . 3 4 3 . 4 Wheel 9 | . . 5 . 1 . . . . . 2 . . . . . 1 Hover 3 | . . . . . 1 . . . . . . . . . . 2 Flight 7 | . . . . . 3 . 3 . . . . . . 1 . . Utility 62 | 2 1 5 . 3 7 2 3 1 8 . 1 2 2 9 6 10 Device 22 | 1 . 1 . . 2 1 2 1 3 . 1 . 1 3 3 3 Storage 12 | 1 1 . . 2 . 1 . . 1 . . 1 . 1 2 2 Processor 10 | . . . . 1 1 . 1 . 2 . . . 1 1 1 2 Hackware 9 | . . . . . 4 . . . 1 . . . . 4 . . Protection 8 | . . 4 . . . . . . 1 . . 1 . . . 2 Artifact 1 | . . . . . . . . . . . . . . . . 1 Weapon 46 | 2 3 5 1 4 2 . 3 2 5 2 2 . 3 5 3 4 Energy Gun 13 | 2 1 1 1 1 . . . 1 2 . 1 . . . . 3 Energy Cannon 5 | . . . . . . . . . . . . . . 3 2 . Ballistic Gun 5 | . 1 1 . . 1 . . . 1 . . . 1 . . . Ballistic Cannon 6 | . 1 2 . . . . . . 1 . . . 2 . . . Launcher 4 | . . . . 2 . . . . 1 . . . . . . 1 Special Weapon 8 | . . . . 1 . . 3 1 . 2 . . . 1 . . Impact Weapon 2 | . . . . . 1 . . . . . . . . . 1 . Slashing Weapon 1 | . . 1 . . . . . . . . . . . . . . Piercing Weapon 2 | . . . . . . . . . . . 1 . . 1 . . Special Melee Weapon . | . . . . . . . . . . . . . . . . . Unidentified Prototypes 15 | . . 1 . . . . . . 1 . 1 5 . . 6 1 Corrupted Parts 4 | . . . . . . . . . 1 . . . 2 . . 1 System Corruption 38 | . . . . . . . . . 15 . . . 13 . . 10 Parts Lost 68 | . . 4 . . . . 1 1 12 . 1 . 4 9 5 31 Power 9 | . . 1 . . . . 1 . . . 1 . . 3 . 3 Propulsion 21 | . . . . . . . . . 7 . . . 1 2 . 11 Utility 26 | . . 3 . . . . . . 3 . . . 3 3 3 11 Weapon 12 | . . . . . . . . 1 2 . . . . 1 2 6 Highest Loss Streak 24 | . . 2 . . . . 1 1 7 . 1 . 2 4 3 24 To Critical Strikes . | . . . . . . . . . . . . . . . . . Average Backups 12 | 4 8 9 9 9 12 11 12 12 12 17 19 19 19 19 16 6 Power . | . 1 . . . . . . 1 . . . . 1 1 1 . Propulsion 2 | 1 2 3 3 2 3 5 3 4 4 4 2 1 1 2 1 . Utility 4 | 1 2 2 2 2 3 2 2 2 3 5 7 9 10 8 6 1 Weapon 3 | 1 2 3 3 4 3 2 4 3 3 5 6 5 3 4 3 1 Tool/Special . | . . . . . . . . . . . . . . . . . Unused Backups 50 | . 2 3 1 10 2 3 6 . 2 1 3 3 2 5 3 4 Power 5 | . 1 . . . . . . . 1 . . . 1 1 1 . Propulsion 11 | . . . 1 2 . 2 1 . . . 2 . . 2 1 . Utility 21 | . 1 3 . 5 2 1 1 . 1 1 . 2 1 1 1 1 Weapon 9 | . . . . 3 . . 3 . . . 1 1 . 1 . . Tool/Special 4 | . . . . . . . 1 . . . . . . . . 3 Average Slot Usage (%) 89 | . 100 99 100 95 46 74 77 72 80 84 89 87 95 98 98 42 Engine 6 | . 14 13 14 14 . . 2 . . . . . . . . . Reactor 2 | . . . . . . . . . 3 5 2 2 7 8 9 2 Treads 4 | . 28 16 . . . . . . . . . . . . . . Leg 13 | . . . . 22 . 2 2 . 20 13 15 19 27 27 27 9 Wheel 4 | . . 11 28 4 . . . . . 7 10 7 . . . . Flight 1 | . . . . . 9 12 12 15 1 . . . . . . . Device 9 | . 14 6 14 1 2 8 6 10 10 14 15 15 12 13 18 3 Storage 9 | . 14 14 14 14 5 10 10 10 5 5 5 5 5 4 9 4 Processor 7 | . . . . 8 6 10 11 10 8 10 10 10 11 14 14 11 Hackware 8 | . . . . . 15 20 20 20 16 15 15 15 13 17 9 3 Protection 1 | . . 7 . . . . . . 1 . . . 1 . . 1 Energy Gun 7 | . 15 14 14 16 2 . . . 1 4 2 . 5 . . . Ballistic Gun 1 | . 5 1 14 1 1 5 . . . 5 5 . . . . . Ballistic Cannon 3 | . 7 12 . . . . . . . . . . 4 . . . Special Weapon 2 | . . . . 9 . . 2 1 3 . . . . 1 . 1 Peak Build Rating 170 | 7 11 21 22 33 103 111 135 134 132 123 119 126 140 155 170 170 Average Rating 78 | 5 9 18 21 27 78 105 114 120 107 115 110 106 128 149 159 79 On Entrance 83 | . 7 11 21 22 31 99 99 126 117 100 114 97 123 140 144 170 Naked Turns . | . . . . . . . . . . . . . . . . . Heaviest Build 145 | 15 35 38 35 53 30 38 40 38 104 93 87 85 91 114 137 145 Greatest Support 168 | 40 40 40 40 34 38 38 40 40 128 50 26 140 165 165 168 168 Greatest Overweight (x) 6 | . . 2 1 5 1 1 1 . 1 5 3 2 . . . 6 Average Overweight (x) . | . . . . . . . . . . 2 2 1 . . . . Largest Inventory Capacity 25 | 8 15 15 15 20 15 15 15 15 20 20 20 20 20 20 25 25 Average Capacity 16 | 7 10 15 15 16 15 15 15 15 18 20 20 20 20 20 22 11 Most Carried 25 | 7 11 15 15 20 15 15 15 15 17 20 20 20 20 20 25 23 Average Carried 15 | 4 8 14 14 15 14 14 14 14 13 18 19 19 19 19 20 10 Final Capacity 25 | 8 15 15 15 15 15 15 15 15 20 20 20 20 20 20 25 5 Final Carried 23 | 6 11 15 15 15 15 15 14 15 12 20 20 19 20 20 23 5 Class Distribution -------------------- 46% | Mutant 43% | Hacker-Mutant 4% | Scavenger-Mutant Dominant Class ---------------- Mutant | -10/Materials Mutant | -10/Subcaves Mutant | -7/Recycling Mutant | -7/Scraptown Hacker-Mutant | -5/Factory Hacker-Mutant | -5/Upper Caves Hacker-Mutant | -5/Warlord Hacker-Sprinter | -4/Proximity Caves Hacker-Mutant | -4/Factory Hacker-Mutant | -4/Upper Caves Hacker-Mutant | -4/Upper Caves Hacker-Mutant | -4/Zhirov Hacker-Mutant | -3/Proximity Caves Hacker-Mutant | -3/Research Hacker-Mutant | -3/Quarantine Mutant | -2/Research Resources | -11 -10 -10 -7 -7 -5 -5 -5 -4 -4 -4 -4 -4 -3 -3 -3 -2 ----------- Run | Yrd Mat Sub Rec Scr Fac Upp War Pro Fac Upp Upp Zhi Pro Res Qua Res Matter Collected 4082 | 270 72 523 24 40 125 236 . 45 462 288 224 . 769 343 268 393 Remotely . | . . . . . . . . . . . . . . . . . Salvage Created 3842 | 85 237 276 . . 125 108 60 6 1110 58 186 . 262 736 305 288 Parts 178 | 12 13 19 . . 2 3 1 6 26 7 15 . 12 26 13 23 Haulers Intercepted 3 | . 1 . . . . . . . 2 . . . . . . . Recyclers Shooed . | . . . . . . . . . . . . . . . . . Parts Field Recycled . | . . . . . . . . . . . . . . . . . Retrieved Matter . | . . . . . . . . . . . . . . . . . Parts Self-Destructed 65 | . . 14 . . . 1 . 6 . 7 19 . 18 . . . Prevented 33 | . . . . . . . . 3 . . 4 . 26 . . . Kills | -11 -10 -10 -7 -7 -5 -5 -5 -4 -4 -4 -4 -4 -3 -3 -3 -2 ------- Run | Yrd Mat Sub Rec Scr Fac Upp War Pro Fac Upp Upp Zhi Pro Res Qua Res Combat Hostiles Destroyed 111 | . 6 15 . . 2 3 7 9 21 4 7 . 4 18 6 9 Melee 9 | . . . . . . . . . 2 . . . . 1 6 . Guns 32 | . 6 10 . . . 1 . 1 4 2 7 . 1 . . . Cannons 16 | . . 5 . . . . 1 . 1 . . . 3 6 . . AOE 46 | . . . . . 1 2 6 8 7 2 . . . 11 . 9 Classes Destroyed 18 | 1 4 2 . . 2 . 3 . 3 . . . 1 1 . 1 Worker 11 | . . . . . . . . . 2 . . . . . 1 8 Builder 11 | . . . . . 1 . . . 1 . . . . 1 . 8 Tunneler 7 | 4 . . . . . . . . . . . . . 1 . 2 Hauler 3 | . 1 . . . . . . . 2 . . . . . . . Recycler 3 | . . . . . . . . . . . . . . . . 3 Mechanic 2 | . . . . . . . . . 1 . . . . . . 1 Watcher 1 | . 1 . . . . . . . . . . . . . . . Swarmer 38 | . 3 7 . . . 1 . 9 1 3 7 . . 1 4 2 Grunt 41 | . 3 . . . . 1 3 . 10 . . . 1 14 2 7 Brawler 1 | . . . . . . . 1 . . . . . . . . . Duelist 1 | . . . . . . . . . . . . . 1 . . . Protector 1 | . . . . . . . 1 . . . . . . . . . Sentry 7 | . . 1 . . 1 1 . . 3 . . . 1 . . . Demolisher 2 | . . . . . . . 2 . . . . . . . . . Hunter 2 | . . . . . . . . . 2 . . . . . . . Programmer 10 | . . . . . 1 . . . 5 1 . . 1 2 . . Heavy 1 | . . . . . . . . . . . . . . 1 . . Subdweller 8 | . . 8 . . . . . . . . . . . . . . Best Kill Streak 21 | 2 3 4 . . 2 2 7 5 7 3 4 . 1 9 3 21 Combat Bots Only 9 | . 3 4 . . 1 2 7 5 4 3 4 . 1 9 3 7 Max Kills in Single Turn 21 | 1 2 1 . . 1 2 2 4 5 2 2 . 1 4 1 21 Gunslinging 1 | . 1 . . . . . . . . . . . . . . . Exploded 7 | . . . . . 1 2 2 4 3 2 . . . 4 . 7 Melee 1 | . . . . . . . . . 1 . . . . 1 1 . Uniques/NPCs Destroyed . | . . . . . . . . . . . . . . . . . Combat | -11 -10 -10 -7 -7 -5 -5 -5 -4 -4 -4 -4 -4 -3 -3 -3 -2 -------- Run | Yrd Mat Sub Rec Scr Fac Upp War Pro Fac Upp Upp Zhi Pro Res Qua Res Hostile Shots Fired 1097 | . 26 90 27 . 17 6 10 12 248 8 31 . 44 170 81 327 Missed 374 | . 5 27 13 . 8 4 4 2 78 1 9 . 12 61 22 128 Hits 723 | . 21 63 14 . 9 2 6 10 170 7 22 . 32 109 59 199 Melee 6 | . . . . . . . . . . . . . 6 . . . Projectile 717 | . 21 63 14 . 9 2 6 10 170 7 22 . 26 109 59 199 AOE 16 | . . 1 . . . . 6 8 1 . . . . . . . Critical Strikes 36 | . 1 3 . . . . . . 7 1 . . 4 9 4 7 Actively Blocked 17 | . . . . . . . . . 2 1 . . 1 9 3 1 Part Disruptions 3 | . . . . . . . . . 3 . . . . . . . Damage Taken 15138 | . 229 1091 128 . 194 49 296 417 3267 94 272 . 762 1926 983 5430 Core 2824 | . 23 153 45 . . . 47 25 450 23 29 . 153 261 149 1466 Absorbed by Shields 1287 | . . . . . . . . . . . . . . 410 599 278 Redirected to Shielding 154 | . . . . . . . . . . . . . . 3 8 143 Ignored by Resistances 388 | . . . . . . . . . 296 20 72 . . . . . Regen/Repaired (Parts) 321 | . . . . 316 . . 5 . . . . . . . . . Core Remaining (%) 61 | 100 . . . 11 . . . 92 . . . . 43 . 62 . Volleys Fired 256 | 10 21 69 7 . 2 8 8 9 37 5 11 . 17 37 6 9 Largest 2 | 2 2 2 2 . 1 1 1 1 2 2 2 . 2 1 1 1 Hottest 143 | 100 100 98 80 . 50 39 20 45 121 121 93 . 143 98 105 88 Shots Fired 364 | 20 41 108 10 . 2 8 8 9 41 9 21 . 35 36 7 9 Gun 203 | 20 36 42 10 . 2 5 . 7 31 8 21 . 17 . . 4 Cannon 121 | . 5 66 . . . . . . . . . . 17 26 7 . Launcher 18 | . . . . . . 3 . . 5 . . . 1 5 . 4 Special 22 | . . . . . . . 8 2 5 1 . . . 5 . 1 Kinetic 148 | . 18 69 7 . . 5 . . 9 7 12 . 17 4 . . Thermal 158 | 20 23 39 . . . . 1 . 23 1 . . 17 22 7 5 Explosive 36 | . . . . . . 3 7 2 9 1 . . 1 10 . 3 Electromagnetic 14 | . . . 3 . 2 . . . . . 9 . . . . . Entropic 7 | . . . . . . . . 7 . . . . . . . . Robot Hit Streak 19 | 2 7 19 5 . 3 5 12 13 17 2 3 . 5 12 1 3 Robot Miss Streak 9 | 2 9 7 2 . . 1 . 1 1 1 8 . 2 1 2 2 Penetration Max 1 | . . . . . . . . 1 . . . . . . . . Secondary Targets 2 | . 2 . . . . . . . . . . . . . . . Max Gunslinging Chain 1 | . 1 . . . . . . . . . . . . . . . Shots Hit Robots 304 | 8 29 63 8 . 7 6 7 8 82 5 8 . 21 32 15 5 Core Hits 270 | 5 14 53 3 . 2 8 27 12 36 5 10 . 8 42 10 35 Critical Kills 1 | . . . . . . . . . . 1 . . . . . . Critical Parts Destroyed 13 | . . . . . 2 . . 1 10 . . . . . . . Critical Strikes 33 | 1 1 2 1 . 2 . 2 3 13 1 . . 1 . 6 . Burn 4 | 1 1 . . . . . . . 2 . . . . . . . Destroy 2 | . . . 1 . . . . . . 1 . . . . . . Blast 3 | . . 2 . . . . . . . . . . 1 . . . Smash 12 | . . . . . 2 . . . 10 . . . . . . . Sever 5 | . . . . . . . 2 2 1 . . . . . . . Impale 6 | . . . . . . . . . . . . . . . 6 . Detonate 1 | . . . . . . . . 1 . . . . . . . . Melee Attacks 158 | . . 1 . . 10 . . . 64 . . . . 17 65 1 Kinetic 1 | . . . . . . . . . . . . . . . . 1 Impact 74 | . . . . . 10 . . . 64 . . . . . . . Slashing 1 | . . 1 . . . . . . . . . . . . . . Piercing 82 | . . . . . . . . . . . . . . 17 65 . Sneak Attacks 4 | . . . . . 1 . . . 1 . . . . 1 1 . Combat Hostiles . | . . . . . . . . . . . . . . . . . Follow-up Attacks . | . . . . . . . . . . . . . . . . . Damage Inflicted 36857 | 99 382 1102 148 . 293 299 2781 1593 5154 489 195 . 806 3910 583 19023 Guns 2897 | 99 313 619 148 . 14 81 . 284 662 106 195 . 330 . . 46 Cannons 1773 | . 69 483 . . . . . . . . . . 476 709 36 . Explosions 28343 | . . . . . 60 218 2462 1217 2173 383 . . . 2856 . 18974 Melee 3016 | . . . . . 219 . . . 2105 . . . . 145 547 . Ramming 3 | . . . . . . . . . . . . . . . . 3 Kinetic 1888 | . 171 547 121 . . 81 . . 139 106 138 . 476 109 . . Thermal 20347 | 99 211 555 . . 60 . . 78 523 . . . 330 600 36 17855 Explosive 10396 | . . . . . . 218 2462 1139 2173 383 . . . 2856 . 1165 Electromagnetic 98 | . . . 27 . 14 . . . . . 57 . . . . . Impact 2324 | . . . . . 219 . . . 2105 . . . . . . . Slashing 825 | . . . . . . . 319 92 214 . . . . 200 . . Piercing 692 | . . . . . . . . . . . . . . 145 547 . Entropic 284 | . . . . . . . . 284 . . . . . . . . Highest Corruption 37 | . . . . . 1 1 1 . 23 23 23 23 37 4 9 31 Average Corruption 12 | . . . . . 1 1 1 . 5 23 23 23 27 3 4 17 Corruption Purged . | . . . . . . . . . . . . . . . . . Corruption Blocked . | . . . . . . . . . . . . . . . . . Effects 215 | . . . . . 5 7 . . 22 39 26 12 42 5 28 29 Message Errors 58 | . . . . . 2 . . . 5 14 5 3 9 1 8 11 Matter Fused 47 | . . . . . . 4 . . 5 10 6 3 8 . 6 5 Heat Flow Errors 27 | . . . . . 1 . . . 1 6 1 . 7 1 8 2 Energy Discharges 18 | . . . . . . 2 . . 1 . 3 4 7 . 1 . Parts Rejected 7 | . . . . . 1 . . . 2 . . . . 1 1 2 Data Loss (minor) 18 | . . . . . . . . . 1 4 3 2 4 . 2 2 Data Loss (major) 15 | . . . . . 1 1 . . 4 3 3 . 3 . . . Misfires 9 | . . . . . . . . . 1 2 3 . 2 . 1 . Alerts 7 | . . . . . . . . . . . 2 . 1 1 1 2 Misdirections 5 | . . . . . . . . . . . . . . . . 5 Weapon Failures 4 | . . . . . . . . . 2 . . . 1 1 . . Overload Shots . | . . . . . . . . . . . . . . . . . Overflow Damage 2765 | . . . . . 103 . 65 1 779 54 . . 17 113 56 1577 Projectiles 75 | . . . . . . . 40 . . . . . 17 12 6 . Explosions 1782 | . . . . . . . 25 1 84 54 . . . 41 . 1577 Melee 908 | . . . . . 103 . . . 695 . . . . 60 50 . Knockbacks 29 | . . 4 . . . . . . 17 . . . 6 2 . . Impact 16 | . . . . . . . . . 16 . . . . . . . Kinetic 10 | . . 4 . . . . . . . . . . 4 2 . . Secondary 3 | . . . . . . . . . 1 . . . 2 . . . Self-Inflicted Damage 872 | . . . . . . . . . 21 . . . . . . 851 Shots 3 | . . . . . . . . . 2 . . . . . . 1 Rammed 2 | . . . . . . . . . . . . . . . . 2 Targets Rammed 2 | . . . . . . . . . . . . . . . . 2 Kicked . | . . . . . . . . . . . . . . . . . Crushed . | . . . . . . . . . . . . . . . . . Highest Temperature 262 | 118 154 8 99 . 192 . 1 4 140 257 96 . 262 199 188 172 Average Temperature 60 | 48 54 3 49 . 112 . 1 2 50 96 56 . 118 17 91 57 Received Heat Transfer 1441 | . 120 147 54 . 9 9 9 . 330 . . . 57 196 52 458 Siege Activations . | . . . . . . . . . . . . . . . . . Martial Activations . | . . . . . . . . . . . . . . . . . Shielding Activations . | . . . . . . . . . . . . . . . . . Robots Disrupted . | . . . . . . . . . . . . . . . . . Combat Hostiles . | . . . . . . . . . . . . . . . . . Robots Corrupted 9 | . . . . . 1 . . . 8 . . . . . . . Combat Hostiles 8 | . . . . . 1 . . . 7 . . . . . . . Parts Fried 9 | . . . . . 1 . . . 8 . . . . . . . Impact Corruptions 32 | . . . . . 3 . . . 29 . . . . . . . Robots Melted . | . . . . . . . . . . . . . . . . . Combat Hostiles . | . . . . . . . . . . . . . . . . . Parts Melted 7 | 1 . . . . . . . . 1 . . . 1 4 . . Heat Transferred 4143 | 370 610 675 . . . . . 25 888 . . . 444 900 37 194 Parts Sabotaged . | . . . . . . . . . . . . . . . . . Parts Stolen . | . . . . . . . . . . . . . . . . . Parts Stripped . | . . . . . . . . . . . . . . . . . Power Chain Reactions 1 | . . . . . 1 . . . . . . . . . . . Alert | -11 -10 -10 -7 -7 -5 -5 -5 -4 -4 -4 -4 -4 -3 -3 -3 -2 ------- Run | Yrd Mat Sub Rec Scr Fac Upp War Pro Fac Upp Upp Zhi Pro Res Qua Res Maximum Alert Level 3 | . . . . . . . . . 1 . . . . 3 2 3 Low Security (%) 48 | 100 100 . 100 . 100 . . . 25 . . . . 69 8 31 Level 1 42 | . . . . . . . . . 74 . . . . 15 89 . Level 2 2 | . . . . . . . . . . . . . . 14 1 . Level 3 6 | . . . . . . . . . . . . . . . . 68 Level 4 . | . . . . . . . . . . . . . . . . . Level 5 . | . . . . . . . . . . . . . . . . . High Security . | . . . . . . . . . . . . . . . . . Max Security . | . . . . . . . . . . . . . . . . . Peak Influence 1031 | 5 116 . 39 . 30 . . . 288 . . . . 706 405 1031 Initial 399 | . . . 28 . . . . . 56 . . . . 55 399 81 Average 222 | 1 36 . 7 . 6 . . . 218 . . . . 211 277 682 Influence Increases 5940 | 20 186 293 76 . 102 60 125 200 812 120 218 . 593 1256 379 1500 Destroy 0b10 Robot/C 2740 | . 120 200 40 . 40 60 120 180 420 80 180 . 380 560 120 240 Destroy 0b10 Robot/NC 235 | 20 10 . . . 5 . 5 . 30 . . . 10 40 5 110 Destroy Leader 374 | . 34 10 . . 20 . . 20 84 10 10 . 40 116 10 20 Allied During Kill 353 | . . 8 6 . . . . . . . 13 . 163 114 . 49 Successful Hack 155 | . 22 . 14 . 18 . . . 34 . . . . 16 44 7 Disable Machine 300 | . . . 15 . . . . . 75 . . . . 15 150 45 Destroy Structure 1393 | . . . 1 . 4 . . . 154 . . . . 290 50 894 Partial Spotted 15 | . . . . . 15 . . . . . . . . . . . Lose Combat Pursuer 375 | . . 75 . . . . . . 15 30 15 . . 105 . 135 Influence Decreases 4985 | 20 186 233 136 . 102 36 50 209 636 302 268 34 510 629 944 690 Entered New Map 742 | . . . 32 . . . 24 99 34 99 17 34 . 28 311 64 Time Decay 3161 | 20 186 197 104 . 102 36 16 90 482 193 201 . 330 351 583 270 Lost Part 646 | . . 20 . . . . 10 10 120 . 10 . 40 90 50 296 Lost Ally 436 | . . 16 . . . . . 10 . 10 40 . 140 160 . 60 Squads Dispatched 25 | . 1 . . . 1 . . . 4 . . . . 7 6 6 Investigation 6 | . . . . . . . . . 1 . . . . 1 2 2 Extermination 10 | . . . . . 1 . . . 2 . . . . 2 4 1 Reinforcement 8 | . 1 . . . . . . . 1 . . . . 3 . 3 Assault . | . . . . . . . . . . . . . . . . . Garrison 1 | . . . . . . . . . . . . . . 1 . . Intercept . | . . . . . . . . . . . . . . . . . Searches Triggered . | . . . . . . . . . . . . . . . . . Construction Impeded 3 | . . . . . . . . . 1 . . . . 1 . 1 Haulers Reinforced . | . . . . . . . . . . . . . . . . . Active Scanning Responses . | . . . . . . . . . . . . . . . . . Cargo Convoy Interrupts . | . . . . . . . . . . . . . . . . . Stealth | -11 -10 -10 -7 -7 -5 -5 -5 -4 -4 -4 -4 -4 -3 -3 -3 -2 --------- Run | Yrd Mat Sub Rec Scr Fac Upp War Pro Fac Upp Upp Zhi Pro Res Qua Res Distress Signals 16 | . . . . . 1 . . 7 2 . . . . 3 1 2 Communications Jammed . | . . . . . . . . . . . . . . . . . Distress Signals . | . . . . . . . . . . . . . . . . . Times Spotted 213 | . 13 22 2 . 5 3 8 6 30 7 11 . 15 38 16 37 Peak Tracking Total 8 | . 3 6 1 . 2 2 8 4 4 4 5 . 6 8 4 8 Tactical Retreats 17 | . . 3 . . . . . . 1 1 1 . . 4 . 7 Traps | -11 -10 -10 -7 -7 -5 -5 -5 -4 -4 -4 -4 -4 -3 -3 -3 -2 ------- Run | Yrd Mat Sub Rec Scr Fac Upp War Pro Fac Upp Upp Zhi Pro Res Qua Res Traps Triggered 10 | . . . . . . . . . 1 . . . . 1 1 7 Indirectly . | . . . . . . . . . . . . . . . . . Trap Hack Attempts . | . . . . . . . . . . . . . . . . . Triggered . | . . . . . . . . . . . . . . . . . Disarmed . | . . . . . . . . . . . . . . . . . Reprogrammed . | . . . . . . . . . . . . . . . . . Reused . | . . . . . . . . . . . . . . . . . Traps Extracted . | . . . . . . . . . . . . . . . . . Installed . | . . . . . . . . . . . . . . . . . Triggered . | . . . . . . . . . . . . . . . . . Machines | -11 -10 -10 -7 -7 -5 -5 -5 -4 -4 -4 -4 -4 -3 -3 -3 -2 ---------- Run | Yrd Mat Sub Rec Scr Fac Upp War Pro Fac Upp Upp Zhi Pro Res Qua Res Machines Disabled 25 | . . 2 1 . . . 1 . 5 . . . 1 1 11 3 Max in Single Turn 3 | . . 1 . . . . 1 . 1 . . . . 1 1 3 Garrison Access 4 | . . . . . . . . . 2 . . . . . 1 1 Machines Repaired . | . . . . . . . . . . . . . . . . . Machines Dismantled 3 | . . . . . . . 1 . 1 . . . . . 1 . Machines Sabotaged . | . . . . . . . . . . . . . . . . . Overloaded Fab Kills . | . . . . . . . . . . . . . . . . . Hacking | -11 -10 -10 -7 -7 -5 -5 -5 -4 -4 -4 -4 -4 -3 -3 -3 -2 --------- Run | Yrd Mat Sub Rec Scr Fac Upp War Pro Fac Upp Upp Zhi Pro Res Qua Res Machines Accessed 54 | . 3 1 2 4 4 . 7 . 9 1 . 4 . 4 11 4 Terminals 27 | . 3 . 2 . 3 . . . 4 . . . . 3 10 2 Fabricators 2 | . . . . . . . . . 1 . . . . 1 . . Repair Stations . | . . . . . . . . . . . . . . . . . Recycling Units 3 | . . . . . 1 . . . 1 . . . . . . 1 Scanalyzers 1 | . . . . . . . . . 1 . . . . . . . Garrison Access 4 | . . . . . . . . . 2 . . . . . 1 1 Total Hacks 149 | . 11 5 5 16 9 . 19 . 27 1 . 17 . 13 20 6 Successful 108 | . 6 5 1 16 6 . 19 . 19 1 . 17 . 7 9 2 Failed 41 | . 5 . 4 . 3 . . . 8 . . . . 6 11 4 Catastrophic 9 | . . . 2 . . . . . 1 . . . . . 5 1 Database Lockouts . | . . . . . . . . . . . . . . . . . Manual 18 | . 9 . . . 1 . . . 2 . . . . 4 1 1 Terminals 73 | . 11 . 5 . 7 . . . 17 . . . . 11 18 4 Fabricators 4 | . . . . . . . . . 2 . . . . 2 . . Repair Stations . | . . . . . . . . . . . . . . . . . Recycling Units 6 | . . . . . 2 . . . 3 . . . . . . 1 Scanalyzers 3 | . . . . . . . . . 3 . . . . . . . Garrison Access 5 | . . . . . . . . . 2 . . . . . 2 1 Terminal Hacks 92 | . 3 5 1 16 4 . 19 . 10 1 . 17 . 7 8 1 Record 49 | . . 4 . 15 1 . 17 . 4 . . 5 . . 3 . Part Schematic 4 | . . . . . . . . . . . . 4 . . . . Robot Analysis 5 | . . . . . . . . . 1 . . 4 . . . . Prototype ID Bank 4 | . . . . . . . . . . . . 4 . . . . Open Door 3 | . . . . . . . 2 . . 1 . . . . . . Level Access Points 1 | . . . . . . . . . . . . . . 1 . . Branch Access Points 5 | . 1 . . . 1 . . . 1 . . . . 1 . 1 Emergency Access Points 2 | . . . . . . . . . 1 . . . . 1 . . Patrol Status 1 | . 1 . . . . . . . . . . . . . . . Extermination Status 1 | . . . . . . . . . . . . . . 1 . . Recall Extermination 2 | . . . . . . . . . . . . . . . 2 . Recall Reinforcements 1 | . . . . . . . . . . . . . . 1 . . Registered Components 4 | . 1 . . . 1 . . . 1 . . . . 1 . . Registered Prototypes 2 | . . . . . . . . . 1 . . . . . 1 . Zone Layout 6 | . . . 1 . 1 . . . 1 . . . . 1 2 . Proto ID Catalog 2 | . . 1 . 1 . . . . . . . . . . . . Fabricator Hacks 2 | . . . . . . . . . 2 . . . . . . . Load Schematic 1 | . . . . . . . . . 1 . . . . . . . Build 1 | . . . . . . . . . 1 . . . . . . . Repair Station Hacks . | . . . . . . . . . . . . . . . . . Recycling Unit Hacks 4 | . . . . . 2 . . . 2 . . . . . . . Report Inventory 2 | . . . . . 1 . . . 1 . . . . . . . Retrieve Components 2 | . . . . . 1 . . . 1 . . . . . . . Scanalyzer 3 | . . . . . . . . . 3 . . . . . . . Insert Component 1 | . . . . . . . . . 1 . . . . . . . Analyze 2 | . . . . . . . . . 2 . . . . . . . Garrison Access Hacks 4 | . . . . . . . . . 2 . . . . . 1 1 Seal Access 4 | . . . . . . . . . 2 . . . . . 1 1 Unauthorized Hacks 3 | . 3 . . . . . . . . . . . . . . . Terminals 3 | . 3 . . . . . . . . . . . . . . . Botnet 3 | . 3 . . . . . . . . . . . . . . . Fabricators . | . . . . . . . . . . . . . . . . . Repair Stations . | . . . . . . . . . . . . . . . . . Recycling Units . | . . . . . . . . . . . . . . . . . Scanalyzers . | . . . . . . . . . . . . . . . . . Garrison Access . | . . . . . . . . . . . . . . . . . Data Cores Recovered . | . . . . . . . . . . . . . . . . . Used . | . . . . . . . . . . . . . . . . . Hacking Detections 30 | . 3 . 2 . 3 . . . 7 . . . . 4 9 2 Full Trace Events 8 | . 1 . 2 . . . . . 1 . . . . 1 2 1 Feedback Events 1 | . . . . . . . . . . . . . . . . 1 Hackware Fried 1 | . . . . . . . . . . . . . . . . 1 Feedback Blocked . | . . . . . . . . . . . . . . . . . Robot Schematics Acquired . | . . . . . . . . . . . . . . . . . Robots Built . | . . . . . . . . . . . . . . . . . Authchips . | . . . . . . . . . . . . . . . . . Time . | . . . . . . . . . . . . . . . . . Total Robot Build Rating . | . . . . . . . . . . . . . . . . . Part Schematics Acquired 5 | . . . . . . . . . 1 . . 4 . . . . Parts Built 1 | . . . . . . . . . 1 . . . . . . . Authchips . | . . . . . . . . . . . . . . . . . Time 102 | . . . . . . . . . 102 . . . . . . . Total Part Build Rating 8 | . . . . . . . . . 8 . . . . . . . Parts Repaired . | . . . . . . . . . . . . . . . . . Time . | . . . . . . . . . . . . . . . . . Parts Recycled . | . . . . . . . . . . . . . . . . . Recycled Matter . | . . . . . . . . . . . . . . . . . Retrieved Matter . | . . . . . . . . . . . . . . . . . Retrieved Components 13 | . . . . . 3 . . . 10 . . . . . . . Parts Scanalyzed 1 | . . . . . . . . . 1 . . . . . . . Part Schematics Acquired 1 | . . . . . . . . . 1 . . . . . . . Parts Damaged 1 | . . . . . . . . . 1 . . . . . . . Bothacking | -11 -10 -10 -7 -7 -5 -5 -5 -4 -4 -4 -4 -4 -3 -3 -3 -2 ------------ Run | Yrd Mat Sub Rec Scr Fac Upp War Pro Fac Upp Upp Zhi Pro Res Qua Res Used RIF Installer . | . . . . . . . . . . . . . . . . . Robots Hacked 1 | . . . . . . . . . . . . . . . . 1 Non-combat . | . . . . . . . . . . . . . . . . . Combat 1 | . . . . . . . . . . . . . . . . 1 Robot Hacks Applied 1 | . . . . . . . . . . . . . . . . 1 parse_system 1 | . . . . . . . . . . . . . . . . 1 Relay Couplers Released 2 | . . . . . . . . . 2 . . . . . . . Machine Destruction 2 | . . . . . . . . . 2 . . . . . . . Fabnet Peak Effective % . | . . . . . . . . . . . . . . . . . Robots Rewired 2 | . . . . . . . . . . . . . 2 . . . Allies Hacked 2 | . . . . . 2 . . . . . . . . . . . Hacks Repelled . | . . . . . . . . . . . . . . . . . Allies | -11 -10 -10 -7 -7 -5 -5 -5 -4 -4 -4 -4 -4 -3 -3 -3 -2 -------- Run | Yrd Mat Sub Rec Scr Fac Upp War Pro Fac Upp Upp Zhi Pro Res Qua Res Total Allies 33 | . . 6 . . . . . . . . 6 . 7 6 . 8 Largest Group 8 | . . 4 3 3 3 . . . . . 4 4 5 4 . 8 Highest-Rated Group 337 | . . 74 57 57 57 . . . . . 324 324 337 284 . 113 Highest-Rated Ally 81 | . . 19 19 19 19 . . . . . 81 81 81 81 . 15 Total Orders 8 | . . . . . 1 5 . 1 . 1 . . . . . . EXPLORE 7 | . . . . . 1 4 . 1 . 1 . . . . . . RETURN 1 | . . . . . . 1 . . . . . . . . . . Ally Attacks 239 | . . 18 16 . 4 . . . . . 5 . 84 89 . 23 Total Damage 6362 | . . 303 276 . 82 . . . . . 146 . 2505 2595 . 455 Kills 44 | . . 3 2 . . . . . . . 2 . 17 16 . 4 Allies Corrupted 1 | . . . . . . . . . . . . . . . . 1 Allies Melted . | . . . . . . . . . . . . . . . . . Intel | -11 -10 -10 -7 -7 -5 -5 -5 -4 -4 -4 -4 -4 -3 -3 -3 -2 ------- Run | Yrd Mat Sub Rec Scr Fac Upp War Pro Fac Upp Upp Zhi Pro Res Qua Res Active Infowar (turns) 7435 | 32 620 139 . . 109 . . . 1039 846 558 212 657 937 1800 486 Sensors 5889 | . . . . . . . . . 1039 846 558 212 485 810 1800 139 Terrain 109 | . . . . . 109 . . . . . . . . . . . Seismic 791 | 32 620 139 . . . . . . . . . . . . . . Decoding 3395 | . . . . . . . . . . . . . 172 937 1800 486 Robot Analysis Total 5 | . . . . . . . . . 1 . . 4 . . . . Derelict Logs Recovered 12 | . . 2 . 4 . 1 . 3 . 1 1 . . . . . Drone Launches 11 | . . . . . 2 6 . 2 . 1 . . . . . . Drone Recoveries 7 | . . . . . . 6 . 1 . . . . . . . . Decoded 0b10 Intel 172 | . . . . . . . . . . . . . . 57 80 35 Items 172 | . . . . . . . . . . . . . . 57 80 35 Exploration | -11 -10 -10 -7 -7 -5 -5 -5 -4 -4 -4 -4 -4 -3 -3 -3 -2 ------------- Run | Yrd Mat Sub Rec Scr Fac Upp War Pro Fac Upp Upp Zhi Pro Res Qua Res Turns Passed 15384 | 246 620 3087 461 2273 414 596 481 194 1242 846 558 212 818 937 1800 599 Spaces Moved 11045 | 124 325 2024 366 1712 245 250 873 331 753 494 404 157 631 588 1043 725 Core 308 | 12 . . . . . . . . . . . . . . . 296 Treads 1370 | 112 325 933 . . . . . . . . . . . . . . Legs 4524 | . . . . 1246 . 93 83 . 523 133 . 63 631 588 1043 121 Wheels 2786 | . . 1091 366 466 . . . . . 361 404 94 . . . 4 Hover 304 | . . . . . . . . . . . . . . . . 304 Flight 1753 | . . . . . 245 157 790 331 230 . . . . . . . Fastest Speed 30 | 50 160 105 110 120 37 37 30 30 30 136 119 110 112 111 118 40 Average Speed 108 | 149 160 134 111 129 40 75 42 30 90 150 126 116 114 114 118 65 Slowest Speed 260 | 160 160 160 120 190 80 190 120 30 180 190 136 119 115 118 118 260 Overloaded Moves . | . . . . . . . . . . . . . . . . . Propulsion Burnouts . | . . . . . . . . . . . . . . . . . Robots Hopped . | . . . . . . . . . . . . . . . . . Potential Cave-ins 53 | . . . . . . . . . 2 . . . . . 51 . Cave-ins Triggered 2 | . . . . . . . . . . . . . . . 1 1 Teleports 1 | . . . . . . . . . . . . . . . 1 . Exploration Rate (%) 51 | 9 39 87 65 83 10 47 94 53 15 58 59 61 75 20 76 26 Regions Visited 16 Branch Regions 11 Pre-discovered Areas 11 | . . 2 . 4 . . . . . 1 1 3 . . . . Known Exits Taken 10 | . . . . 1 1 1 . . 1 1 1 1 1 1 1 . Unknown Exits Taken 6 | 1 1 1 1 . . . 1 1 . . . . . . . . Scrap Searched 18 | . . 7 . 3 . 2 . 2 . 1 1 . 2 . . . Spaces Dug 583 | . . . . . 2 . . . . . . . . 10 23 548 Terrain Destroyed 1035 | . . . . . 2 8 52 58 111 22 2 . 33 121 25 601 Melee 35 | . . . . . 2 . . . . . . . . 10 23 . Projectile 26 | . . . . . . . . 10 1 3 2 . 5 3 2 . AOE 974 | . . . . . . 8 52 48 110 19 . . 28 108 . 601 Terrain Rammed . | . . . . . . . . . . . . . . . . . Walls Destroyed . | . . . . . . . . . . . . . . . . . Machines Disabled . | . . . . . . . . . . . . . . . . . Actions | -11 -10 -10 -7 -7 -5 -5 -5 -4 -4 -4 -4 -4 -3 -3 -3 -2 --------- Run | Yrd Mat Sub Rec Scr Fac Upp War Pro Fac Upp Upp Zhi Pro Res Qua Res Total 13720 | 164 388 2288 411 1774 542 653 970 414 1156 588 434 185 694 775 1443 841 Wait 1549 | 12 18 142 34 7 249 376 37 66 227 65 . . 3 55 240 18 Move 11028 | 123 324 2023 365 1711 244 249 872 330 752 493 403 156 630 587 1041 725 Hop . | . . . . . . . . . . . . . . . . . Pick Up 197 | 12 10 17 2 22 12 3 15 2 23 12 6 6 9 16 23 7 Fast Attach 55 | 1 . 1 . . 5 2 2 . 2 1 2 5 4 9 4 17 Attach 114 | 6 . 6 1 5 8 5 4 2 23 5 2 2 4 13 10 18 Detach 26 | . . . . . 4 5 2 1 3 2 1 1 . 1 2 4 Swap 97 | . 7 12 . 10 1 . 5 4 11 3 3 6 5 22 8 . Drop 161 | . 8 17 2 19 7 5 16 . 9 2 6 9 8 18 13 22 Fire 256 | 10 21 69 7 . 2 8 8 9 37 5 11 . 17 37 6 9 Melee 158 | . . 1 . . 10 . . . 64 . . . . 17 65 1 Ram 3 | . . . . . . . . . . . . . . . . 3 Kick . | . . . . . . . . . . . . . . . . . Crush . | . . . . . . . . . . . . . . . . . Escape Stasis 16 | . . . . . . . . . . . . . . . 1 15 Rewire 14 | . . . . . . . . . . . . . 14 . . . Trap . | . . . . . . . . . . . . . . . . . Miscellaneous 46 | . . . . . . . 9 . 5 . . . . . 30 2 Route ------- -11/Scrapyard -10/Materials (discovered 3 exits: [*Mat] / Min / *Sub) -10/Subcaves (discovered 3 exits: [*Mat x2] / *Rec) -7/Recycling (discovered 2 exits: *Fac / *Scr) -7/Scraptown (discovered 2 exits: *Fac x2) -5/Factory (discovered 2 exits: *Upp x2) -5/Upper Caves -5/Warlord -4/Proximity Caves -4/Factory (discovered 4 exits: *Upp x2 / Ext x2) -4/Upper Caves -4/Upper Caves (discovered 2 exits: *Res / *Zhi) -4/Zhirov -3/Proximity Caves -3/Research (discovered 6 exits: *Res x3 / Arm / *Qua x2) -3/Quarantine -2/Research (discovered 2 exits: Tes x2) History --------- Turn | Location | Event 6 | -11/Scrapyard | Discovered new exit (range 16) 247 | -11/Scrapyard | Entered Materials 301 | -10/Materials | Build established: Mutant 307 | -10/Materials | Identified exit to Mines 851 | -10/Materials | Discovered new exit (range 16) 860 | -10/Materials | Discovered new exit (range 5) 867 | -10/Materials | Entered Subcaves 875 | -10/Subcaves | Learned location of Zion (-7) 977 | -10/Subcaves | Met a Zionite searching for "candidates" 1005 | -10/Subcaves | A Subdweller sparked back to life 1005 | -10/Subcaves | A Subdweller sparked back to life 1042 | -10/Subcaves | Found Prototype Flight Unit 1199 | -10/Subcaves | Core integrity fell below 50% 1335 | -10/Subcaves | Shifting Twisted Machinery released Multitool 1586 | -10/Subcaves | Discovered new exit (range 13) 1805 | -10/Subcaves | Shifting Twisted Machinery released Flamer 1874 | -10/Subcaves | Shifting Twisted Machinery released Sub. Machine Gun 2232 | -10/Subcaves | Discovered new exit (range 12) 2440 | -10/Subcaves | Visited 4L-MR0's lab 2450 | -10/Subcaves | Identified Flightbrick 2467 | -10/Subcaves | Found Arachnoskeleton 2565 | -10/Subcaves | Visited triangular shrine 2577 | -10/Subcaves | Found Prototype Device 2620 | -10/Subcaves | Identified V3-11A's Pendant 2625 | -10/Subcaves | Befriended Subdweller 2645 | -10/Subcaves | Befriended Subdweller 2665 | -10/Subcaves | Befriended Subdweller 2670 | -10/Subcaves | Befriended Subdweller 2685 | -10/Subcaves | Befriended Subdweller 3040 | -10/Subcaves | Befriended Subdweller 3179 | -10/Subcaves | Discovered new exit (range 5) 3200 | -10/Subcaves | A swath of the cavern ceiling suddenly collapsed 3954 | -10/Subcaves | Entered Recycling 3954 | -7/Recycling | Accompanied by 3 allies 4019 | -7/Recycling | Discovered new exit (range 5) 4321 | -7/Recycling | Core integrity fell below 20% 4353 | -7/Recycling | Scanned before Scraplab entrance 4384 | -7/Recycling | Entered Scraplab 4401 | -7/Recycling | Discovered new exit (range 2) 4415 | -7/Recycling | Entered Scraptown 4415 | -7/Scraptown | Accompanied by 3 allies 4523 | -7/Scraptown | Scanned Subdweller tech in exchange for log data 4527 | -7/Scraptown | Learned location of Armory (-3) 4528 | -7/Scraptown | Learned location of Warlord (-5) 4529 | -7/Scraptown | Learned location of Quarantine (-3) 4530 | -7/Scraptown | Learned location of Testing (-2) 4650 | -7/Scraptown | Heard Great Nut preacher, LISTEN AND RECITE! 4673 | -7/Scraptown | Delivered V3-11A's Pendant to T0-NE2 in exchange for information 4882 | -7/Scraptown | Visited UFD Registry 4882 | -7/Scraptown | Registered with UFD as "Gravroller" 4899 | -7/Scraptown | Visited TADAMA 4906 | -7/Scraptown | Visited Cave Peace 4978 | -7/Scraptown | Discovered new exit (range 13) 5004 | -7/Scraptown | Guru changed UFD alias to "Bladeunit" 5319 | -7/Scraptown | Visited Supply Room 5350 | -7/Scraptown | Visited Botcube Research 5388 | -7/Scraptown | Delivered Scrap Shield to a Scientist 5444 | -7/Scraptown | Visited Science Guys 5481 | -7/Scraptown | Visited Scrapoid Pod Storage 5497 | -7/Scraptown | Visited Junk Repository 5536 | -7/Scraptown | Visited A0-MCA Data Center 5543 | -7/Scraptown | Given a B rating by A0-MCA 5546 | -7/Scraptown | Found A0-MCA's Component Scanner 5586 | -7/Scraptown | Visited Abandonware Association 5598 | -7/Scraptown | Learned abandonware demo "REPAIR.EXE" 5598 | -7/Scraptown | Learned abandonware demo "ERRANTS.EXE" 5661 | -7/Scraptown | Visited Cyclists 5670 | -7/Scraptown | Entered Cyclist Reading Room 5772 | -7/Scraptown | Visited CR-KLE's Repair Center 5785 | -7/Scraptown | CR-KLE repaired 6 parts 6335 | -7/Scraptown | Visited Observation Area 6621 | -7/Scraptown | Met Optimus 6621 | -7/Scraptown | Accepted into 0bPrime 6678 | -7/Scraptown | Discovered new exit (range 3) 6679 | -7/Scraptown | Identified exit to Factory 6688 | -7/Scraptown | Entered Factory 6688 | -5/Factory | Accompanied by 3 allies 6688 | -5/Factory | Evolved 10 slots: Power x1, Propulsion x4, Utility x5 6689 | -5/Factory | Attached Flightbrick, gained temporary slots: Utility x3 6714 | -5/Factory | P-70 Sage assimilated allied EY-49E(R) 6801 | -5/Factory | Identified exit to Upper Caves 7055 | -5/Factory | Build established: Hacker-Mutant 7102 | -5/Factory | Entered Upper Caves 7104 | -5/Upper Caves | UFD Scientist delivered a prototype 7105 | -5/Upper Caves | Found Enh. Scrap Shield 7585 | -5/Upper Caves | Learned location of 1 exit from Factory 7644 | -5/Upper Caves | Attracted the attention of an 0b10 checkpoint 7658 | -5/Upper Caves | A Derelict revealed a hidden shortcut to "reach the base" 7693 | -5/Upper Caves | Identified exit to Warlord 7698 | -5/Upper Caves | Entered Warlord 7780 | -5/Warlord | System corruption cleaned by Quarantine Array 7855 | -5/Warlord | Rebuked by Warlord 7880 | -5/Warlord | Warlord's base attacked by MAIN.C 7914 | -5/Warlord | Found Vortex Rail 7915 | -5/Warlord | Found Vortex Rail 7929 | -5/Warlord | Found RU-N14's Throwing Claymores v3 7930 | -5/Warlord | Found RU-N14's Throwing Claymores v3 7933 | -5/Warlord | Found RU-N14's Throwing Claymores v3 7936 | -5/Warlord | Found RU-N14's Throwing Claymores v3 7938 | -5/Warlord | Found RU-N14's Throwing Claymores v3 7939 | -5/Warlord | Found RU-N14's Throwing Claymores v3 8003 | -5/Warlord | Found Vortex Chain Reactor 8005 | -5/Warlord | Found Exp. Targeting Computer 8137 | -5/Warlord | Opened side exit 8167 | -5/Warlord | Discovered new exit (range 15) 8176 | -5/Warlord | Destroyed 7 combat bots 8179 | -5/Warlord | Entered Proximity Caves 8285 | -4/Proximity Caves | Learned 4 Research zone layouts 8299 | -4/Proximity Caves | Build established: Hacker-Sprinter 8310 | -4/Proximity Caves | Learned location of 1 exit from Research 8370 | -4/Proximity Caves | Discovered new exit (range 10) 8373 | -4/Proximity Caves | Entered Factory 8373 | -4/Factory | Evolved 2 slots: Utility x2 8374 | -4/Factory | Identified exit to Extension 8525 | -4/Factory | Identified exit to Upper Caves 8653 | -4/Factory | Fabricated Exp. Myomer Leg? 8880 | -4/Factory | Build established: Hacker-Mutant 9487 | -4/Factory | System corruption reached 10% 9508 | -4/Factory | Lost 7 parts (5n1u1w) 9615 | -4/Factory | Entered Upper Caves 9716 | -4/Upper Caves | Found DCF Scrap (11 items) 10440 | -4/Upper Caves | Discovered new exit (range 11) 10458 | -4/Upper Caves | Attracted the attention of an 0b10 base 10460 | -4/Upper Caves | Identified exit to Upper Caves 10461 | -4/Upper Caves | Entered another Upper Caves area 10519 | -4/Upper Caves | Discovered new exit (range 4) 10521 | -4/Upper Caves | Identified exit to Research 10630 | -4/Upper Caves | Prototype Device suddenly appears! 10635 | -4/Upper Caves | Found Prototype Device 10636 | -4/Upper Caves | Identified Amulet of Y3-NDR 10676 | -4/Upper Caves | Joined by bewildered Wizard 10678 | -4/Upper Caves | Joined by bewildered Wizard 10881 | -4/Upper Caves | Joined by bewildered Wizard 10887 | -4/Upper Caves | Joined by bewildered Wizard 10888 | -4/Upper Caves | Joined by bewildered Wizard 10900 | -4/Upper Caves | Joined by bewildered Wizard 11000 | -4/Upper Caves | Discovered new exit (range 15) 11017 | -4/Upper Caves | Identified exit to Zhirov 11019 | -4/Upper Caves | Entered Zhirov 11019 | -4/Zhirov | Accompanied by 4 allies 11019 | -4/Zhirov | Discovered new exit (range 3) 11041 | -4/Zhirov | Met Zhirov 11065 | -4/Zhirov | Learned location of Command (-1) 11083 | -4/Zhirov | Zhirov requested help retrieving the SGEMP Prototype 11102 | -4/Zhirov | Found Alien Artifact 11102 | -4/Zhirov | Identified Integrated Dissipator 11102 | -4/Zhirov | Installed Integrated Dissipator, increased core heat dissipation (+20) 11120 | -4/Zhirov | Found Alien Artifact 11228 | -4/Zhirov | Identified exit to Proximity Caves 11231 | -4/Zhirov | Entered Proximity Caves 11231 | -3/Proximity Caves | Accompanied by 4 allies 11313 | -3/Proximity Caves | Attracted the attention of an 0b10 checkpoint 11701 | -3/Proximity Caves | Core integrity fell below 50% 11702 | -3/Proximity Caves | Lost 3 allies 11729 | -3/Proximity Caves | Joined by bewildered Wizard 11735 | -3/Proximity Caves | Joined by bewildered Wizard 11735 | -3/Proximity Caves | Joined by bewildered Wizard 11773 | -3/Proximity Caves | Lost 3 allies 11806 | -3/Proximity Caves | System corruption reached 30% 11944 | -3/Proximity Caves | Joined by bewildered Wizard 12030 | -3/Proximity Caves | Discovered exit to Research (range 8) 12049 | -3/Proximity Caves | Entered Research 12049 | -3/Research | Accompanied by 4 allies 12049 | -3/Research | Evolved 2 slots: Utility x2 12050 | -3/Research | Identified exit to Research 12269 | -3/Research | Discovered exit to Research (range 15) 12281 | -3/Research | Joined by bewildered Wizard 12281 | -3/Research | Joined by bewildered Wizard 12302 | -3/Research | Joined by bewildered Wizard 12316 | -3/Research | Joined by bewildered Wizard 12502 | -3/Research | Identified exit to Armory 12502 | -3/Research | Identified exit to Quarantine 12825 | -3/Research | Lost 4 allies 12856 | -3/Research | Destroyed 9 combat bots 12896 | -3/Research | Joined by bewildered Wizard 12898 | -3/Research | Joined by bewildered Wizard 12925 | -3/Research | Lost 3 parts (1p1n1u) 12933 | -3/Research | Garrison activated, responded to threat 12986 | -3/Research | Entered Quarantine 13014 | -3/Quarantine | Lost 4 parts (2p1n1u) 13056 | -3/Quarantine | Found Alien Energy Cannon 13327 | -3/Quarantine | Found Alien Artifact 13497 | -3/Quarantine | Found Alien Artifact 13498 | -3/Quarantine | Identified Subatomic Replicator 13510 | -3/Quarantine | Identified Transdimensional Reconstructor 13510 | -3/Quarantine | Warped through subspace 13545 | -3/Quarantine | Discovered exit to Research (range 10) 13585 | -3/Quarantine | Found Alien Impact Weapon 13585 | -3/Quarantine | Identified Core Stripper 13593 | -3/Quarantine | Identified Core Cannon 13655 | -3/Quarantine | Found Sigix Corpse 13664 | -3/Quarantine | Found Sigix Corpse 13715 | -3/Quarantine | Build established: Scavenger-Mutant 13820 | -3/Quarantine | Found Alien Reactor 13866 | -3/Quarantine | Identified Matter Drive 14039 | -3/Quarantine | Found Alien Artifact 14071 | -3/Quarantine | Found Alien Artifact 14115 | -3/Quarantine | Found Alien Launcher 14160 | -3/Quarantine | Build established: Hacker-Mutant 14359 | -3/Quarantine | Found Alien Artifact 14360 | -3/Quarantine | Identified Core Reset Matrix 14360 | -3/Quarantine | Identified Terrabomb (x2) 14360 | -3/Quarantine | Identified Sigix Terminator 14360 | -3/Quarantine | Identified Phase Redirector 14360 | -3/Quarantine | Used Core Reset Matrix 14364 | -3/Quarantine | Detected hypermatrix surge 14364 | -3/Quarantine | Sensed 9 artifacts in vicinity 14444 | -3/Quarantine | Met incapacitated Sigix Warrior 14444 | -3/Quarantine | Lockdown squad dispatched 14496 | -3/Quarantine | Found Sigix Containment Pod 14629 | -3/Quarantine | Crushed by falling debris 14660 | -3/Quarantine | Lost 3 parts (2u1w) 14752 | -3/Quarantine | Discovered exit to Research (range 5) 14786 | -3/Quarantine | Entered Research 14786 | -2/Research | Evolved 2 slots: Weapon x2 14829 | -2/Research | Adv. Hacking Suite fried by hacking feedback 14926 | -2/Research | Crushed by falling debris 14926 | -2/Research | System corruption reached 10% 14974 | -2/Research | Fired Sigix Terminator 14995 | -2/Research | Destroyed 7 combat bots 15024 | -2/Research | Lost 24 parts (3p9n6u6w) 15153 | -2/Research | Identified exit to Testing 15205 | -2/Research | Core integrity fell below 50% 15213 | -2/Research | Build established: Mutant 15243 | -2/Research | Emitted hypermatrix ping 15248 | -2/Research | Assembled emerged from beneath the floor 15262 | -2/Research | System corruption reached 30% 15263 | -2/Research | Core integrity fell below 20% 15295 | -2/Research | Lost 8 allies 15303 | -2/Research | Lost 5 parts (2n3u) 15385 | -2/Research | Destroyed by P-80 Master with Gamma Rifle Last Messages --------------- 15332_ Field strength at 58. 15333_ Field strength at 52. 15334_ Field strength at 46. 15335_ Field strength at 40. 15336_ Field strength at 34. 15337_ Field strength at 28. 15338_ Field strength at 22. 15339_ Field strength at 16. 15340_ Field strength at 10. 15341_ Field strength at 4. 15342_ Stasis field depleted. 15343_ 06EBKRYA10UTCNBS%E3Z=9Z%B FBNP 0VN 15358_ System corrupted: Component data lost. 15363_ K-01 Serf cleans the Vacuum Chamber. 15375_ K-01 Serf cleans the Subatomic Condenser. 15385_ Triggered Blade Trap. 15385_ Massive razor-sharp blades shoot up from within the floor. 15385_ Imp. Launcher Guidance Computer severed. Map ----- +----------------------------------------------------+ | ##??# + * #????#+#?????# #?? | | #??# ########## #???? ?????# #?? | | #??# ???????????## ##????[ =?????# #?? | | #??# ??????????????# #????? ?????# ### | | #??#????????????????# #?????# #?????# | | #???????????????????# #?????# #?????# ## | | """ #???????????????????# #????## ####### # | | " #???????????????????# #? # # | | " #???????????###+##### #? / ! + | | " #???????????# #!? # # | | # ??????????# #!???# "" "" ## | | # ###?????????+ #??### ""T"" #?? | | ## #???????????# #??# """ #?? | | #? ############# #### #?? | | #? #?? | | #? #?? | | #? ######+########+#?? | | ###? = # T####???? ??????????? | | = ####??????? ??????????? | | = #????????? ?????????? | | ###?#+### % ########?? ?????????? | | ???????### #########/###+#### | | ???????????# w | | ???????????# # | | ?????????? * # | | ?????=???### @ w # | | ???????????######+#######k # | | ????????????????????????# | | ?????????????????????=??# k | | ????????????????????????# pR g | | ????????????????????????# """ """ """ """ | | ????????????????????????# """ """ """ """ | | ????????????????????????# """ """ """ """ | | ????????????????????????# g | | ????????????????????????# | | ????????????????????????# | | ????????????????????????# | | ????????????????????????# ###### | | ????????????????????????####+####+######## ##????? | | ???????????????????????????# #?# #?????? | | ???????????????????????????# ! #?# #?????? | | ???????????????????????????# """ #?#+#?????? | | ???????????????????????????# """ # ????? | | ???????????????????????????# """ # ??? | | ???????????????????????????# #! ? | | ???????????????????????????# # ! # | | ???????????????????????????####################### | | ?????????????????????????????????????????????????? | | ?????????????????????????????????????????????????? | | ?????????????????????????????????????????????????? | +----------------------------------------------------+ Best States ------------- Heat Dissipation 69 Energy Generation 55 Energy Capacity 920 Matter Stores 300 Matter Capacity 300 Sight Range 16 Robot Scan Range 18 Terrain Scan Range 14 Terrain Scan Density 10 Armor Coverage 800 Resistance: KI 20 Resistance: TH 30 Core Shielding 40 Weapon Shielding 66 Phase Shifting 5 Evasion (%) 70 Targeting Accuracy 12 Launcher Accuracy 30 Recoil Reduction 2 Offensive Hacking 56 Defensive Hacking 14 Authchip Count 1 Item Schematics ----------------- None Robot Schematics ------------------ None Fabricated ------------ Exp. Myomer Leg | x1 | -4/Factory Repaired ---------- Nothing Alien Tech Used ----------------- Integrated Dissipator Subatomic Replicator Transdimensional Reconstructor Core Stripper Core Cannon Matter Drive Core Reset Matrix Phase Redirector Sigix Terminator Achievements -------------- False Reunion Hard Hitter Challenges ------------ None Game ------ Seed SingularityLightBroadsword Manual? 0 Play Time 03:21:38 Cumulative 168.2 hours Start 2025.08.19 @ 02:38:03 End 2025.08.19 @ 07:00:36 Sessions 5 Manual Loads 0 Difficulty Rogue Special Mode None Game No. 271 Rogue 271 Adventurer 0 Explorer 0 Win Type - Total 3 Types 2/0/1/0/0/0/0/0/0/0 Lore% 78 Gallery% 73 Achievement% 54 Wizard Run 0 Options --------- Layout 1 ASCII 0 Keyboard 0 Movement Mouse Keybinds 0 Fullscreen 1 Font 24/Smallcaps Map View 50x35 Zoom Use 0% Tactical HUD 1 Map Filters NONE Filters NONE Steam 1 RUN: d546933f-89ca-4a77-bb12-7786684f259c